bitfinex-derivatives/quotes_ETHF0:USTF0_20250102
["timestamp","ask_amount","ask_price","bid_price","bid_amount"]
[1735833675972,3.2078,3465.6,3465.3,0.4414]
[1735833676165,0.28887,3465.4,3465.3,0.28887]
[1735833676370,0.28886,3465.5,3465.3,0.28887]
[1735833676674,3.2078,3465.6,3465.5,0.28886]
[1735833676876,3.49665,3465.6,3465.5,0.28886]
[1735833677184,3.2078,3465.6,3465.5,0.28886]
[1735833678274,3.2078,3466.0,3465.3,2.04698785]
[1735833678577,3.2078,3466.0,3465.9,0.28882]
[1735833678968,3.34721853,3466.6,3465.9,0.28882]
[1735833678969,3.2078,3466.6,3465.9,2.04698785]
[1735833679274,3.2078,3466.6,3466.5,0.28877]
[1735833679473,3.2078,3466.6,3466.0,0.4369]
[1735833679674,3.2078,3466.6,3466.5,0.28877]
[1735833680073,6.36944172,3467.6,3466.5,0.28877]
[1735833680074,3.2078,3467.0,3466.7,0.72189]
[1735833680269,3.2078,3467.0,3466.8,0.4451]
[1735833680471,3.2078,3467.0,3466.9,0.28874]
[1735833681880,0.2887,3467.4,3467.3,0.28871]
[1735833682280,3.2078,3467.5,3466.9,3.2078]
[1735833682478,3.2078,3467.5,3467.4,0.2887]
[1735833682672,0.2887,3467.4,3467.3,0.2887]
[1735833682871,0.28871,3467.3,3467.2,0.28871]
[1735833683275,0.28872,3467.2,3467.1,0.28872]
[1735833683479,0.28874,3466.9,3466.8,1.17985]
[1735833684375,0.28874,3466.9,3466.8,1.17984]
[1735833685078,0.28874,3467.0,3466.9,0.28874]
[1735833685271,3.2078,3467.5,3466.8,0.8911]
[1735833685477,0.2887,3467.4,3467.3,0.2887]
[1735833685776,0.2887,3467.4,3466.8,2.93808785]
[1735833685777,3.2078,3467.5,3466.9,0.72186]
[1735833685976,3.2078,3467.5,3467.4,0.2887]
[1735833687181,3.2078,3467.5,3466.8,2.93808785]
[1735833687380,0.28872,3467.2,3467.1,0.28872]
[1735833687578,3.2078,3467.5,3466.8,0.8911]
[1735833687884,0.28875,3466.8,3466.7,0.28875]
[1735833688583,0.28877,3466.6,3466.5,0.28877]
[1735833688780,5.97661785,3467.1,3466.3,0.28879]
[1735833688781,0.28879,3466.4,3466.3,0.28879]
[1735833688984,0.28878,3466.5,3466.4,0.28878]
[1735833689679,0.72184,3467.0,3466.0,3.92983]
[1735833689875,0.28878,3466.5,3466.4,0.28878]
[1735833690079,0.28877,3466.6,3466.5,0.28877]
[1735833690278,6.54978785,3467.1,3466.0,3.92983]
[1735833690578,0.28876,3466.7,3466.6,0.28876]
[1735833691181,3.2078,3466.7,3466.6,0.28876]
[1735833691387,0.28874,3467.0,3466.9,0.28873]
[1735833691787,3.49653,3467.1,3467.0,0.28873]
[1735833692083,0.28874,3467.0,3466.9,0.28873]
[1735833692286,3.2078,3467.1,3466.4,0.72195]
[1735833692485,0.28874,3467.0,3466.9,0.28873]
[1735833693086,3.2078,3467.1,3466.4,0.72195]
[1735833693287,3.2078,3466.7,3466.4,0.72195]
[1735833693487,3.2078,3466.7,3466.6,0.28876]
[1735833693690,0.28873,3467.0,3466.4,0.72195]
[1735833693884,0.28873,3467.0,3466.9,0.28874]
[1735833694284,3.2078,3467.1,3466.4,0.72195]
[1735833694587,3.2078,3467.5,3467.4,0.2887]
[1735833694787,3.49649,3467.5,3467.4,0.2887]
[1735833695791,3.2078,3467.5,3467.0,1.2651]
[1735833696096,1.62247,3467.9,3466.5,2.04698785]
[1735833696097,3.2078,3467.1,3466.5,2.04698785]
[1735833696396,3.49653,3467.1,3467.0,0.28873]
[1735833698090,3.2078,3467.1,3467.0,0.28873]
[1735833698988,3.2078,3467.1,3466.8,2.04698785]
[1735833698989,0.28871,3467.3,3466.8,2.04698785]
[1735833699301,0.28871,3467.3,3467.2,0.28872]
[1735833700202,4.5018,3467.5,3466.7,0.72189]
[1735833700406,0.28871,3467.3,3467.2,0.2887]
[1735833700796,0.28873,3467.2,3467.1,0.28871]
[1735833700997,0.4364,3467.2,3467.1,0.28871]
[1735833701204,0.72512,3467.2,3467.1,0.28871]
[1735833701507,0.4364,3467.2,3467.1,0.28871]
[1735833701696,0.28877,3466.6,3466.5,0.28877]
[1735833702198,0.28876,3466.7,3466.6,0.28875]
[1735833703206,0.28878,3466.6,3466.5,0.28877]
[1735833703503,0.28879,3466.4,3466.3,0.28878]
[1735833703707,0.71128,3466.5,3466.4,0.28878]
[1735833704210,0.4225,3466.5,3466.0,1.3188]
[1735833704400,0.2888,3466.3,3466.2,0.28879]
[1735833706904,0.28885,3465.7,3465.6,0.28884]
[1735833707110,0.72202,3466.1,3465.5,0.28885]
[1735833707111,0.28886,3465.6,3465.5,0.28885]
[1735833707305,0.72386,3465.6,3465.5,0.28885]
[1735833707509,0.72385,3465.6,3465.5,0.28885]
[1735833707805,0.435,3465.6,3465.5,0.28885]
[1735833709313,0.435,3465.6,3465.2,0.4274]
[1735833709614,0.28887,3465.3,3465.2,0.71628]
[1735833709809,0.435,3465.6,3465.2,0.28888]
[1735833710109,0.28887,3465.4,3465.3,0.28887]
[1735833710613,0.28888,3465.2,3465.1,0.28888]
[1735833711105,0.28888,3465.3,3465.2,0.28887]
[1735833711610,0.72385,3465.6,3465.5,0.28886]
[1735833711817,0.28885,3465.7,3465.6,0.28884]
[1735833713213,0.28885,3465.7,3464.9,0.4385]
[1735833713214,4.5018,3465.9,3465.3,2.04698785]
[1735833713414,4.5018,3465.9,3465.8,0.28883]
[1735833713605,0.4357,3466.1,3466.0,0.28881]
[1735833713806,2.23147902,3466.2,3466.1,0.28881]
[1735833714905,0.2888,3466.2,3466.1,0.28881]
[1735833715202,3.2078,3466.3,3465.9,0.28882]
[1735833715203,0.28882,3466.0,3465.9,0.28882]
[1735833715407,5.25478785,3466.3,3465.5,0.8597]
[1735833715709,0.28882,3465.9,3465.8,0.28883]
[1735833716415,3.49662,3465.9,3465.8,0.28883]
[1735833717914,3.2078,3465.9,3465.8,0.28883]
[1735833718110,5.72806902,3466.3,3466.2,0.2888]
[1735833718911,5.43927902,3466.3,3465.6,2.04698785]
[1735833719215,0.28881,3466.2,3466.1,0.2888]
[1735833719416,0.28881,3466.2,3465.8,0.28883]
[1735833719417,0.28883,3465.9,3465.8,0.28883]
[1735833719607,3.49663,3465.9,3465.8,0.28883]
[1735833720219,3.2078,3465.9,3465.5,0.8597]
[1735833720411,0.28884,3465.8,3465.7,0.28883]
[1735833720713,3.2078,3465.9,3465.5,0.8597]
[1735833720918,3.49663,3465.9,3465.8,0.28883]
[1735833721314,3.2078,3465.9,3465.8,0.28883]
[1735833721520,3.2078,3466.3,3466.2,0.2888]
[1735833721824,2.23147902,3466.4,3466.3,0.28879]
[1735833722023,2.23147902,3466.6,3466.5,0.28877]
[1735833722317,1.7117,3467.3,3467.2,0.28872]
[1735833722517,1.294,3467.3,3467.2,0.28872]
[1735833723015,0.2887,3467.4,3467.3,0.28871]
[1735833723207,1.294,3468.0,3467.3,0.28871]
[1735833723208,3.2078,3468.2,3467.3,2.04698785]
[1735833723411,3.49643,3468.2,3468.1,0.28864]
[1735833723609,3.2078,3468.2,3468.1,0.28864]
[1735833723822,7.67506446,3468.2,3468.1,0.28864]
[1735833724221,10.12238568,3468.2,3467.0,0.72184]
[1735833724410,3.2078,3467.7,3467.0,0.72184]
[1735833724614,0.2887,3467.5,3467.2,0.28871]
[1735833724919,3.2078,3467.3,3466.7,0.4416]
[1735833725124,0.28875,3466.8,3466.7,0.73036]
[1735833725308,3.2078,3466.9,3466.5,7.24755183]
[1735833725511,3.2078,3466.9,3466.2,9.05140244]
[1735833725720,3.49659,3466.3,3466.2,9.34020244]
[1735833725916,3.2078,3466.3,3466.2,9.34020244]
[1735833726825,3.2078,3466.3,3466.2,0.2888]
[1735833728921,3.2078,3466.3,3465.8,1.17227]
[1735833728922,0.4608,3466.5,3466.4,0.28878]
[1735833729115,5.7290344,3466.8,3466.7,0.28876]
[1735833729318,5.4402844,3466.8,3466.7,0.28876]
[1735833729517,5.7290344,3466.8,3466.7,0.28876]
[1735833729820,2.2324844,3466.8,3466.7,0.28876]
[1735833730017,5.4402844,3466.8,3466.7,0.28876]
[1735833730219,2.2324844,3466.8,3466.7,0.28876]
[1735833730924,3.2078,3466.9,3466.8,0.28875]
[1735833732524,0.4608,3467.1,3466.6,0.4623]
[1735833732719,0.28875,3466.8,3466.7,0.28875]
[1735833733120,3.2078,3466.9,3465.9,3.16938122]
[1735833733323,0.28877,3466.5,3466.4,0.28878]
[1735833733625,3.2078,3466.5,3465.7,3.6354]
[1735833733825,0.2888,3466.2,3466.1,0.2888]
[1735833734024,0.2888,3466.3,3466.1,0.2888]
[1735833734325,0.4584,3466.4,3466.0,0.28881]
[1735833734529,0.4584,3466.4,3465.7,3.6354]
[1735833734530,0.28882,3466.0,3465.7,3.6354]
[1735833734924,0.4584,3466.4,3465.7,3.2078]
[1735833735128,0.28883,3465.8,3465.7,3.49664]
[1735833735628,0.72198,3466.3,3465.7,3.2078]
[1735833735830,0.74719,3466.4,3466.3,0.28879]
[1735833736032,0.4584,3466.4,3466.3,0.28879]
[1735833736218,0.4584,3466.4,3465.7,3.2078]
[1735833736424,0.28881,3466.2,3466.0,0.28881]
[1735833736620,0.28879,3466.3,3465.8,0.4293]
[1735833736922,0.4584,3466.4,3465.8,0.4293]
[1735833737528,0.2888,3466.3,3466.2,0.2888]
[1735833737826,0.4584,3466.4,3466.0,0.28881]
[1735833738031,0.28881,3466.1,3466.0,0.28881]
[1735833738224,0.4584,3466.4,3465.8,0.4293]
[1735833738421,0.28881,3466.2,3466.0,0.28881]
[1735833738622,0.4584,3466.4,3465.8,0.4293]
[1735833738827,0.74719,3466.4,3465.8,0.4293]
[1735833739025,0.74719,3466.4,3466.3,0.28879]
[1735833739026,0.4584,3466.4,3466.3,0.28879]
[1735833739326,3.2078,3466.5,3466.4,0.28878]
[1735833740430,0.28879,3466.4,3466.3,0.28879]
[1735833741130,3.2078,3466.5,3465.9,0.4531]
[1735833741432,0.2888,3466.2,3466.1,0.2888]
[1735833741732,0.28882,3466.0,3465.9,0.28882]
[1735833742124,0.4623,3466.4,3465.8,0.4293]
[1735833742429,0.28882,3466.0,3465.9,0.28882]
[1735833743035,0.72207,3465.9,3464.8,10.49596244]
[1735833743233,0.28887,3465.4,3465.0,0.2889]
[1735833743425,3.2078,3465.5,3465.3,0.28887]
[1735833743629,3.49666,3465.5,3465.3,0.28887]
[1735833743830,0.28886,3465.4,3464.9,0.4473]
[1735833744026,0.2889,3465.0,3464.9,0.4473]
[1735833744240,3.2078,3465.1,3464.8,9.05140244]
[1735833744443,0.4399,3464.9,3464.0,9.05140244]
[1735833744733,0.4399,3464.9,3464.1,0.28897]
[1735833744734,0.28896,3464.3,3464.1,0.28897]
[1735833744930,3.2078,3464.4,3464.1,0.28897]
[1735833745131,3.2078,3464.4,3464.2,0.28896]
[1735833745336,3.2078,3464.4,3464.0,9.05140244]
[1735833745540,0.28896,3464.3,3464.0,9.34038244]
[1735833745736,0.28897,3464.2,3464.0,9.05140244]
[1735833746041,0.28897,3464.1,3463.9,0.28899]
[1735833746337,3.2078,3464.4,3463.7,0.4473]
[1735833746533,0.28898,3464.1,3463.8,0.28899]
[1735833746734,0.28898,3464.0,3463.8,0.28899]
[1735833747240,3.2078,3464.0,3463.7,0.4473]
[1735833747433,0.289,3463.8,3463.7,0.4473]
[1735833747734,0.28904,3463.4,3463.1,0.28906]
[1735833747935,3.49685,3463.2,3462.9,0.28907]
[1735833748140,3.2078,3463.2,3462.8,0.4338]
[1735833748445,3.2078,3463.2,3462.8,0.72288]
[1735833748739,3.2078,3463.2,3462.8,0.4338]
[1735833748935,3.2078,3463.2,3463.1,0.28906]
[1735833749235,3.2078,3463.2,3462.8,0.4338]
[1735833749441,3.2078,3463.2,3463.1,0.28906]
[1735833749643,3.2078,3463.6,3463.5,0.28902]
[1735833750933,0.28901,3463.8,3463.5,0.28902]
[1735833751134,2.46189,3463.9,3463.6,0.28901]
[1735833751335,3.2078,3463.7,3462.9,2.44732122]
[1735833751636,3.2078,3463.7,3463.6,0.28902]
[1735833751837,2.1729,3463.9,3462.9,2.44732122]
[1735833752037,2.1729,3463.9,3463.6,0.28901]
[1735833752238,2.1729,3463.9,3463.7,0.28901]
[1735833752239,2.46189,3463.9,3463.7,0.28901]
[1735833752534,0.28901,3463.7,3462.9,2.44732122]
[1735833752730,0.28903,3463.5,3463.2,0.28905]
[1735833752933,3.2078,3463.6,3462.8,0.4338]
[1735833753144,3.2078,3463.1,3463.0,0.28907]
[1735833753646,0.28903,3463.4,3463.2,0.28905]
[1735833753942,3.2078,3463.6,3462.8,0.4338]
[1735833754141,0.28904,3463.4,3463.1,0.28905]
[1735833754840,0.28904,3463.4,3462.8,0.4338]
[1735833755035,3.2078,3463.2,3463.1,0.28905]
[1735833755235,0.28906,3463.1,3462.8,0.4338]
[1735833755437,0.28907,3463.0,3462.4,3.2078]
[1735833755634,0.28908,3462.8,3462.5,0.2891]
[1735833755838,0.73368,3462.9,3462.6,0.28909]
[1735833756034,0.4446,3462.9,3462.8,0.28908]
[1735833756539,3.2078,3463.2,3462.5,0.4336]
[1735833756746,3.2078,3462.8,3462.5,0.4336]
[1735833757044,0.28909,3462.7,3462.5,0.4336]
[1735833757237,3.2078,3462.8,3462.6,0.2891]
[1735833757538,3.2078,3462.8,3462.7,0.28909]
[1735833758045,3.2078,3462.8,3462.5,0.4336]
[1735833758247,3.2078,3462.8,3462.0,0.72286]
[1735833758436,3.2078,3462.8,3462.0,1.18126]
[1735833758639,3.2078,3462.8,3462.1,0.72284]
[1735833758944,3.2078,3462.8,3462.0,1.18126]
[1735833759140,0.28909,3462.7,3462.0,1.18126]
[1735833759442,0.2891,3462.6,3462.4,0.28911]
[1735833759744,3.2078,3462.8,3462.5,0.2891]
[1735833760046,3.2078,3462.8,3462.4,0.28911]
[1735833760239,0.2891,3462.7,3462.5,0.2891]
[1735833760545,2.44732122,3462.7,3462.0,0.4584]
[1735833760732,0.28913,3462.2,3462.0,0.4584]
[1735833760932,0.28915,3462.0,3461.4,0.8565]
[1735833761140,3.2078,3461.9,3461.5,0.4617]
[1735833761449,5.65512122,3461.9,3460.6,3.2078]
[1735833761738,0.2892,3461.4,3460.7,0.72314]
[1735833761938,3.2078,3461.5,3460.7,0.72315]
[1735833762145,0.2892,3461.4,3460.8,0.28925]
[1735833762339,0.2892,3461.4,3461.2,0.28921]
[1735833762538,3.2078,3461.3,3461.2,0.28921]
[1735833763648,3.6549,3461.7,3461.6,0.28918]
[1735833763841,3.2078,3461.7,3461.6,0.28918]
[1735833764041,0.4455,3462.3,3461.4,3.9308]
[1735833764248,3.2078,3462.0,3461.4,0.4268]
[1735833764551,0.28916,3461.9,3461.7,0.28917]
[1735833764846,3.2078,3462.0,3461.9,0.28916]
[1735833765139,3.2078,3462.0,3461.4,0.4268]
[1735833765337,0.28917,3461.8,3461.6,0.28918]
[1735833765536,0.28917,3461.8,3461.4,0.4268]
[1735833765537,0.28916,3461.9,3461.4,0.28919]
[1735833765737,0.28918,3461.6,3461.5,0.28918]
[1735833765948,3.49698,3461.6,3461.5,0.28919]
[1735833766159,3.2078,3461.6,3461.3,0.4361]
[1735833766443,0.28921,3461.3,3461.1,0.28922]
[1735833766646,3.17020122,3462.0,3460.8,0.4268]
[1735833766647,3.2078,3461.7,3460.8,0.4268]
[1735833766835,3.2078,3461.6,3461.3,0.28921]
[1735833767041,3.2078,3461.6,3461.0,3.2078]
[1735833767243,0.28919,3461.5,3461.3,0.28921]
[1735833767543,3.2078,3461.6,3461.5,0.28919]
[1735833767736,0.28919,3461.5,3461.3,0.2892]
[1735833768144,0.28919,3461.5,3461.4,0.2892]
[1735833768343,3.2078,3461.6,3460.8,0.4268]
[1735833768536,3.2078,3461.4,3460.8,0.4268]
[1735833768743,3.2078,3461.8,3461.0,3.2078]
[1735833768942,3.2078,3461.8,3461.1,3.17039122]
[1735833769142,3.2078,3461.8,3460.8,0.4268]
[1735833769341,3.2078,3461.8,3460.9,0.72311]
[1735833769742,0.28919,3461.5,3461.3,0.2892]
[1735833769943,0.28919,3461.5,3460.9,0.72311]
[1735833770150,0.28919,3461.5,3461.4,0.2892]
[1735833770348,0.28919,3461.5,3461.3,0.2892]
[1735833770643,0.28919,3461.5,3460.9,0.72311]
[1735833770644,0.2892,3461.5,3461.4,0.2892]
[1735833770953,0.28921,3461.3,3461.2,0.28921]
[1735833771149,0.28923,3461.1,3461.0,0.28923]
[1735833771447,3.49701,3461.3,3461.2,0.28922]
[1735833771650,3.2078,3461.3,3461.2,0.28922]
[1735833772138,3.49701,3461.3,3461.2,0.28922]
[1735833772343,0.28922,3461.2,3460.8,0.4268]
[1735833772541,3.49701,3461.3,3461.2,0.28922]
[1735833772743,3.2078,3461.3,3461.2,0.28922]
[1735833772940,3.49701,3461.3,3461.2,0.28922]
[1735833773147,0.28922,3461.2,3460.9,0.28924]
[1735833773341,3.49701,3461.3,3460.9,0.28924]
[1735833773537,0.28922,3461.2,3461.1,0.28922]
[1735833773745,3.2078,3461.3,3460.7,0.4386]
[1735833774139,0.28924,3461.0,3460.8,0.28925]
[1735833774341,2.44732122,3460.9,3459.7,0.22997157]
[1735833774540,2.44732122,3460.9,3459.8,0.4629]
[1735833774541,5.65512122,3460.1,3459.8,0.4629]
[1735833774943,3.2078,3460.1,3460.0,0.28932]
[1735833775353,5.65512122,3460.5,3459.8,0.4629]
[1735833775649,5.65512122,3460.5,3460.2,0.28929]
[1735833775845,0.28929,3460.3,3459.8,0.4629]
[1735833776041,0.28929,3460.3,3460.1,0.2893]
[1735833776245,5.65512122,3460.5,3459.8,0.4629]
[1735833776652,0.28929,3460.3,3460.2,0.2893]
[1735833777057,5.65512122,3460.5,3459.8,0.4629]
[1735833777246,5.65512122,3460.5,3460.1,0.28931]
[1735833777447,5.65512122,3460.5,3459.8,0.4629]
[1735833777642,3.2078,3460.1,3459.6,0.4542]
[1735833777846,0.28935,3459.7,3459.5,0.28936]
[1735833778145,0.28936,3459.5,3459.3,0.73487]
[1735833778345,0.28936,3459.5,3458.5,0.7236]
[1735833778346,5.65512122,3459.7,3458.5,3.2078]
[1735833778554,0.28939,3459.2,3459.0,0.2894]
[1735833778853,0.28938,3459.2,3459.0,0.2894]
[1735833779052,3.2078,3459.3,3458.6,0.4317]
[1735833779553,0.28939,3459.2,3459.0,0.28939]
[1735833780052,3.2078,3459.3,3458.6,0.4317]
[1735833780247,0.28937,3459.4,3459.2,0.28938]
[1735833780451,3.2078,3459.3,3458.6,0.4317]
[1735833780853,0.28939,3459.2,3459.0,0.28939]
[1735833781156,0.28938,3459.2,3459.0,0.2894]
[1735833781450,0.28942,3458.7,3458.5,0.28944]
[1735833781652,3.2078,3458.7,3458.1,0.4192]
[1735833782058,0.28943,3458.6,3458.2,0.28947]
[1735833782251,3.49723,3458.7,3458.5,0.28944]
[1735833782458,3.49723,3458.7,3458.1,0.4192]
[1735833782459,3.2078,3458.7,3458.6,0.28943]
[1735833782948,0.4225,3459.1,3458.1,0.4192]
[1735833782949,0.4225,3459.1,3459.0,0.2894]
[1735833783252,5.94451122,3459.2,3459.0,0.2894]
[1735833783454,2.44732122,3459.2,3459.1,0.28939]
[1735833783643,2.44732122,3459.2,3458.4,0.72363]
[1735833783644,3.6314,3459.6,3459.5,0.28936]
[1735833784949,3.6314,3459.6,3458.9,0.8757]
[1735833785145,0.28937,3459.4,3459.2,0.28938]
[1735833785345,0.28937,3459.4,3458.9,0.8757]
[1735833785346,0.28936,3459.5,3459.3,0.28937]
[1735833786253,3.92075,3459.6,3458.9,0.8757]
[1735833786455,3.2078,3459.6,3459.5,0.28936]
[1735833786660,5.65512122,3460.0,3459.9,0.28932]
[1735833786855,5.94444122,3460.0,3459.9,0.28932]
[1735833787153,5.65512122,3460.0,3459.3,0.72344]
[1735833787555,5.65512122,3460.0,3459.1,3.2078]
[1735833787758,0.28936,3459.6,3459.4,0.28936]
[1735833788049,5.65512122,3460.0,3459.1,3.2078]
[1735833788250,3.2078,3459.2,3459.1,0.28939]
[1735833788451,3.2078,3459.2,3458.5,3.2078]
[1735833788452,5.65512122,3459.2,3458.5,3.2078]
[1735833788650,0.28943,3458.7,3458.5,0.28943]
[1735833788858,3.2078,3458.8,3458.1,0.4627]
[1735833789053,3.2078,3458.8,3458.5,0.28944]
[1735833789256,0.28943,3458.7,3458.1,0.4627]
[1735833789454,0.4265,3459.1,3458.1,0.4627]
[1735833789455,3.2078,3458.4,3458.1,0.4627]
[1735833789755,0.28947,3458.2,3458.1,0.75217]
[1735833789959,5.65512122,3458.4,3458.1,0.4627]
[1735833790657,3.49725,3458.4,3458.3,0.28946]
[1735833790955,3.2078,3458.4,3458.3,0.28946]
[1735833791145,3.2078,3458.4,3458.1,0.4627]
[1735833791349,3.2078,3458.4,3457.6,1.64283427]
[1735833791350,0.28951,3457.7,3457.6,0.91905427]
[1735833791545,3.2078,3457.7,3457.6,0.91905427]
[1735833791748,3.49731,3457.7,3457.6,0.91905427]
[1735833791960,3.49731,3457.7,3456.3,3.6425]
[1735833791961,3.2078,3457.7,3456.3,3.6425]
[1735833792158,3.2078,3456.9,3456.0,1.16642]
[1735833792355,3.2078,3456.9,3456.7,0.28959]
[1735833792558,3.2078,3456.9,3456.8,0.28958]
[1735833792750,3.2078,3457.5,3456.6,0.72401]
[1735833792952,0.28954,3457.4,3457.2,0.28954]
[1735833793156,3.2078,3457.5,3456.3,3.2078]
[1735833793463,3.2078,3457.5,3457.4,0.28953]
[1735833793662,0.28954,3457.4,3457.1,0.28956]
[1735833794159,3.2078,3457.5,3456.9,0.28957]
[1735833794361,3.2078,3457.0,3456.9,0.28957]
[1735833794555,0.28956,3457.1,3456.8,0.4349]
[1735833794752,0.28956,3457.1,3456.5,0.4616]
[1735833794753,3.2078,3457.0,3456.9,0.28958]
[1735833794960,3.2078,3457.0,3456.6,0.4638]
[1735833795458,0.28956,3457.1,3456.9,0.28958]
[1735833795659,3.2078,3457.3,3456.6,0.4638]
[1735833795858,0.28955,3457.2,3457.1,0.28955]
[1735833796356,3.49735,3457.3,3457.1,0.28955]
[1735833796559,3.2078,3457.3,3456.6,1.18781]
[1735833796762,3.2078,3457.3,3457.2,0.28955]
[1735833797662,3.49731,3457.8,3457.6,0.28951]
[1735833797963,3.2078,3457.8,3456.9,0.72395]
[1735833798256,3.2078,3457.0,3456.9,0.28957]
[1735833798463,3.2078,3457.0,3456.6,0.4638]
[1735833798660,3.2078,3457.0,3456.5,0.75121]
[1735833798661,0.2896,3456.7,3456.5,0.75121]
[1735833798863,0.2896,3456.6,3456.5,0.7512]
[1735833799257,3.2078,3457.0,3456.4,0.4347]
[1735833799456,2.44732122,3456.9,3456.1,0.4427]
[1735833799655,3.93174,3457.0,3455.5,0.28969]
[1735833799656,3.2078,3456.2,3455.5,0.28969]
[1735833799854,3.2078,3455.8,3454.9,3.2078]
[1735833800265,3.2078,3455.8,3455.7,0.28968]
[1735833800657,3.671,3456.3,3455.5,0.4309]
[1735833800860,3.2078,3456.7,3455.7,0.72419]
[1735833801057,3.2078,3456.7,3456.4,0.28962]
[1735833801259,3.2078,3456.7,3455.9,0.72416]
[1735833801565,3.2078,3457.2,3456.5,3.2078]
[1735833801765,5.4402844,3457.6,3456.6,1.59581]
[1735833802063,0.28954,3457.3,3457.1,0.28955]
[1735833802264,0.28953,3457.5,3457.3,0.28954]
[1735833802467,5.4402844,3457.6,3456.7,0.72399]
[1735833802655,3.2078,3457.2,3456.7,0.28959]
[1735833802961,0.28958,3456.9,3456.6,1.3218]
[1735833803163,2.44732122,3456.9,3456.5,3.2078]
[1735833803363,0.2896,3456.6,3456.5,3.2078]
[1735833803557,0.28963,3456.3,3456.2,0.28963]
[1735833803763,0.28962,3456.4,3456.2,0.28963]
[1735833804064,0.28961,3456.6,3456.1,0.28964]
[1735833804261,4.062,3456.8,3456.4,0.28961]
[1735833804458,0.28961,3456.6,3456.4,0.28962]
[1735833804661,0.28961,3456.6,3456.4,0.28961]
[1735833804855,4.062,3456.8,3455.8,1.3192]
[1735833805057,3.2078,3456.3,3456.2,0.28963]
[1735833805262,0.8542,3456.8,3456.6,0.2896]
[1735833805263,3.2078,3456.7,3456.6,0.2896]
[1735833805562,3.4974,3456.7,3455.9,0.72416]
[1735833805759,3.2078,3456.7,3455.8,1.3192]
[1735833806262,0.28961,3456.5,3456.3,0.28962]
[1735833806456,0.8542,3456.8,3455.8,1.3192]
[1735833806457,3.2078,3456.4,3455.8,1.3192]
[1735833806663,3.2078,3456.4,3455.6,3.2078]
[1735833806853,3.2078,3456.4,3454.8,2.44732122]
[1735833806854,3.2078,3455.9,3455.3,0.4525]
[1735833807060,3.2078,3455.9,3455.5,0.28969]
[1735833807061,0.28967,3455.8,3455.5,0.28969]
[1735833807368,2.44732122,3455.7,3454.6,4.1077]
[1735833807565,3.49749,3455.5,3454.9,0.28974]
[1735833807965,3.49749,3455.5,3454.6,4.1077]
[1735833808662,3.2078,3455.5,3455.4,0.32211203]
[1735833808967,3.49745,3456.0,3455.8,0.28966]
[1735833809153,3.2078,3456.0,3455.5,0.9095]
[1735833809552,3.2078,3456.0,3455.9,0.28966]
[1735833811261,3.2078,3457.0,3455.9,8.2078]
[1735833811468,3.2078,3457.0,3456.6,0.2896]
[1735833811663,0.28961,3456.6,3456.5,0.2896]
[1735833811865,3.2078,3457.0,3456.3,3.2078]
[1735833812169,3.2078,3457.0,3456.9,0.28958]
[1735833812357,3.49737,3457.0,3456.9,0.28958]
[1735833812663,8.2078,3457.0,3455.6,0.4232]
[1735833812966,0.28969,3455.5,3455.4,0.03241203]
[1735833815165,0.2867324,3455.5,3455.4,0.03241203]
[1735833816860,0.4316,3455.7,3455.4,0.03241203]
[1735833817075,0.28969,3455.6,3455.5,0.28969]
[1735833817671,3.2078,3456.2,3455.4,3.24021203]
[1735833817868,0.28965,3456.1,3456.0,0.28965]
[1735833818067,0.28965,3456.0,3455.6,0.28968]
[1735833818266,3.2078,3456.2,3455.5,0.8751]
[1735833818468,0.28967,3455.8,3455.5,0.8751]
[1735833818673,3.2078,3456.2,3455.5,0.8751]
[1735833818865,0.28968,3455.7,3455.6,0.28968]
[1735833819066,0.28968,3455.8,3455.7,0.28967]
[1735833819370,0.28968,3455.6,3455.5,1.16478]
[1735833819769,3.2078,3455.8,3455.5,0.8751]
[1735833820069,0.28961,3456.5,3456.4,0.28961]
[1735833820274,3.2078,3456.6,3455.8,0.4471]
[1735833820770,3.2078,3456.6,3456.0,0.28965]
[1735833820771,0.28965,3456.1,3456.0,0.28965]
[1735833820971,0.28966,3456.0,3455.9,0.28965]
[1735833821171,0.28968,3455.6,3455.5,4.0829]
[1735833821363,0.28968,3455.7,3455.6,0.28968]
[1735833822578,0.28968,3455.6,3455.5,0.8751]
[1735833822773,0.28968,3455.6,3455.4,0.03241203]
[1735833822774,0.28969,3455.5,3455.4,0.03241203]
[1735833823479,3.2078,3455.7,3455.4,0.03241203]
[1735833823668,0.28969,3455.6,3455.5,0.28968]
[1735833823863,3.2078,3455.7,3455.4,0.03241203]
[1735833824072,0.28969,3455.6,3455.5,0.28969]
[1735833824268,3.93193,3456.1,3455.4,0.03241203]
[1735833824269,0.28969,3455.5,3455.4,0.03241203]
[1735833824669,3.2078,3455.7,3455.4,0.03241203]
[1735833824873,0.28969,3455.6,3455.5,0.28969]
[1735833825073,3.2078,3455.7,3455.4,0.03241203]
[1735833825274,0.28969,3455.6,3455.5,0.28969]
[1735833825470,0.28968,3455.6,3455.4,0.32210203]
[1735833825667,3.2078,3455.7,3455.6,0.28968]
[1735833825970,3.55606805,3456.0,3455.4,0.03241203]
[1735833825971,0.28967,3455.8,3455.4,0.03241203]
[1735833826275,3.2078,3455.7,3455.4,0.03241203]
[1735833826576,3.55606805,3456.0,3455.4,0.03241203]
[1735833826577,0.8728,3456.0,3455.9,0.28966]
[1735833826876,0.4317,3456.0,3455.9,0.28966]
[1735833827069,3.49745,3456.1,3456.0,0.28965]